bitfinex-derivatives/quotes_ETHF0:USTF0_20250816
["timestamp","ask_amount","ask_price","bid_price","bid_amount"]
[1755354758545,0.2551744,4400.7,4400.3,0.3717]
[1755354758749,0.2579,4401.6,4400.2,21.552]
[1755354758750,3.2078,4401.8,4401.0,0.3717]
[1755354758949,0.25513324,4401.7,4400.6,0.45419]
[1755354759151,0.25510163,4401.6,4400.9,0.7395]
[1755354759453,3.2078,4401.8,4401.0,22.3145]
[1755354759754,0.2579,4403.0,4401.0,22.3145]
[1755354759755,0.2579,4403.0,4402.3,0.45402]
[1755354759950,3.2078,4403.2,4402.5,0.7395]
[1755354760152,0.2549077,4403.1,4402.6,21.588]
[1755354760350,0.2549077,4403.0,4402.2,35.9068]
[1755354760550,0.9208,4402.5,4401.4,0.3717]
[1755354760753,0.5362,4401.8,4401.5,0.3717]
[1755354760954,3.5924,4401.9,4401.4,0.3678]
[1755354760955,0.2783,4401.7,4401.6,0.3717]
[1755354761156,0.5362,4401.7,4401.6,21.9927]
[1755354761461,0.79116042,4401.7,4401.6,21.9917]
[1755354761958,0.5362,4401.7,4401.6,21.9917]
[1755354762143,3.2078,4401.9,4401.7,0.7395]
[1755354762345,0.2549358,4401.8,4401.7,0.7395]
[1755354762659,3.2078,4402.7,4401.8,4.19357]
[1755354762856,0.25489804,4402.6,4402.3,0.7395]
[1755354763048,3.2078,4403.2,4401.6,21.62]
[1755354763049,3.2078,4403.2,4402.4,0.3678]
[1755354763256,0.25486714,4403.1,4402.5,21.9897]
[1755354763457,0.53316714,4403.0,4402.6,0.7395]
[1755354763655,0.5362,4403.0,4402.9,0.00775106]
[1755354763957,3.2549284,4403.0,4401.4,0.3717]
[1755354764155,0.9208,4401.7,4401.5,21.622]
[1755354764350,0.2549284,4401.6,4401.5,21.622]
[1755354764551,0.5332284,4401.6,4401.5,21.9937]
[1755354764952,0.2579,4401.5,4400.9,22.0228]
[1755354765155,0.2549284,4401.4,4400.3,0.7395]
[1755354765451,0.2549284,4401.3,4400.8,1.19367]
[1755354765654,3.2078,4401.8,4400.7,3.2078]
[1755354765864,3.2078,4401.8,4401.4,0.7395]
[1755354766056,0.2579,4402.9,4401.2,3.2078]
[1755354766057,3.4657,4402.9,4401.7,1.07788]
[1755354766263,3.2078,4402.9,4401.7,3.66188]
[1755354766561,3.2078,4402.9,4402.1,0.6238]
[1755354766763,3.2078,4402.9,4402.2,0.2521]
[1755354767054,3.2078,4402.9,4402.3,0.4874]
[1755354767261,0.9208,4402.8,4402.4,0.3717]
[1755354767454,0.9208,4402.7,4402.4,0.3717]
[1755354767657,0.5362,4402.7,4402.1,32.714]
[1755354767854,3.2078,4402.9,4402.2,21.656]
[1755354768056,0.5362,4402.5,4402.3,0.3717]
[1755354768364,4.1286,4402.4,4401.8,0.4874]
[1755354768659,3.2078,4402.4,4401.9,20.023]
[1755354768852,0.8878,4402.3,4401.9,20.387]
[1755354769056,0.3724,4402.2,4401.9,20.023]
[1755354769258,0.5154,4402.1,4402.0,22.016]
[1755354769760,0.5154,4402.1,4402.0,22.011]
[1755354769960,0.5154,4402.1,4402.0,22.006]
[1755354770460,0.5154,4402.1,4402.0,0.364]
[1755354770761,0.3724,4402.1,4402.0,21.634]
[1755354771257,3.2078,4402.4,4401.8,0.4797]
[1755354771463,0.8878,4402.3,4401.9,21.629]
[1755354771763,0.5154,4402.1,4402.0,0.364]
[1755354771962,3.2078,4402.4,4402.1,0.364]
[1755354772260,3.7232,4402.4,4402.3,0.364]
[1755354772657,3.2078,4402.4,4402.3,0.6146]
[1755354772962,3.2078,4402.4,4402.3,0.8793]
[1755354774062,3.2078,4402.4,4402.3,22.5043]
[1755354775653,3.2078,4402.4,4402.3,22.4883]
[1755354775859,3.2078,4402.4,4402.3,22.4873]
[1755354776058,3.2078,4403.4,4402.4,0.6693]
[1755354776262,0.3724,4403.2,4402.4,0.6693]
[1755354776456,32.88744608,4404.8,4402.4,0.6693]
[1755354776457,0.8878,4402.8,4402.4,0.6693]
[1755354776656,0.8878,4402.6,4402.5,21.619]
[1755354776854,0.8878,4402.6,4402.5,21.773]
[1755354777057,0.8878,4402.6,4402.5,22.0236]
[1755354777356,0.8878,4402.6,4402.5,0.4046]
[1755354777558,1.12681594,4402.6,4402.5,21.614]
[1755354778156,0.23901594,4402.6,4402.1,3.2078]
[1755354778359,0.3724,4402.4,4402.2,22.2833]
[1755354778558,0.75441594,4402.3,4402.2,22.2833]
[1755354779160,0.75441594,4402.3,4402.2,0.6693]
[1755354779363,1.12681594,4402.3,4402.2,22.2683]
[1755354779766,0.23901594,4402.3,4402.2,22.2683]
[1755354780064,3.2078,4402.9,4402.1,3.2078]
[1755354780265,0.2392892,4402.8,4402.3,0.45402]
[1755354780464,3.2078,4403.4,4402.7,0.45397]
[1755354780663,0.23938927,4403.3,4402.8,21.7583]
[1755354780863,0.6373,4404.0,4402.8,21.593]
[1755354781064,0.2505,4403.9,4403.0,0.43]
[1755354781274,0.2505,4403.9,4403.1,3.2078]
[1755354781467,0.2505,4403.9,4403.2,0.1653]
[1755354781676,0.2505,4403.9,4403.3,21.595]
[1755354782067,0.2505,4403.9,4403.2,15.4653]
[1755354782267,0.2505,4403.7,4403.3,21.626]
[1755354782561,0.8878,4403.9,4403.4,21.623]
[1755354782766,0.8878,4404.0,4403.4,21.623]
[1755354783165,0.2649,4403.7,4403.2,0.43]
[1755354783361,0.2505,4403.7,4403.2,0.1653]
[1755354783568,3.2078,4404.1,4403.2,0.1653]
[1755354783774,0.6229,4403.9,4403.3,21.609]
[1755354783969,0.8878,4403.5,4403.3,21.43869447]
[1755354784161,0.8878,4403.4,4403.3,21.43869447]
[1755354784363,0.8878,4403.4,4403.3,0.1653]
[1755354784563,0.8878,4403.4,4403.3,21.7703]
[1755354784966,0.3724,4403.3,4403.0,15.3]
[1755354785171,0.8878,4403.2,4403.1,21.6]
[1755354785373,0.8878,4403.1,4402.9,32.712]
[1755354785675,3.2078,4403.6,4403.0,21.594]
[1755354786172,1.43175431,4403.5,4403.0,21.594]
[1755354786373,0.54395431,4403.4,4403.0,21.594]
[1755354786568,3.2078,4403.6,4403.3,0.1653]
[1755354786770,3.2078,4404.1,4403.0,21.594]
[1755354786971,3.2078,4403.6,4403.5,0.43]
[1755354787275,0.54392596,4403.6,4403.5,22.017]
[1755354787470,3.5727,4404.2,4403.6,0.43]
[1755354787669,0.54408394,4404.1,4403.6,0.43]
[1755354787870,1.05948394,4404.0,4403.7,0.43]
[1755354788172,0.5154,4404.0,4403.9,0.1653]
[1755354788369,1.4323412,4404.0,4403.6,0.43]
[1755354788569,0.2505,4403.9,4403.6,0.43]
[1755354788769,0.5154,4403.8,4403.6,0.2647]
[1755354788973,3.3078,4404.2,4403.9,0.45385]
[1755354789169,0.1,4404.2,4404.1,0.43]
[1755354790773,0.3649,4404.2,4404.1,21.575]
[1755354790974,0.3649,4404.2,4404.1,22.005]
[1755354790975,0.1,4404.2,4404.1,22.005]
[1755354791172,0.1,4404.2,4403.7,3.2078]
[1755354791481,0.6373,4403.8,4403.7,21.599]
[1755354791677,0.8878,4403.8,4403.7,21.599]
[1755354791877,0.2505,4403.8,4403.7,21.7643]
[1755354792073,0.2505,4404.0,4403.8,0.43]
[1755354792379,0.6373,4404.1,4403.9,21.64]
[1755354792577,3.3078,4404.2,4403.9,21.64]
[1755354792578,0.7258737,4404.0,4403.9,21.64]
[1755354792775,0.2104737,4404.0,4403.9,22.079]
[1755354793074,3.3078,4404.2,4403.9,22.083]
[1755354793282,3.3078,4404.2,4404.0,0.43]
[1755354793777,3.3078,4404.2,4404.1,0.43]
[1755354793977,3.5182057,4404.2,4404.1,22.077]
[1755354794180,0.1,4404.2,4404.1,22.077]
[1755354794784,0.1,4404.2,4404.1,22.074]
[1755354795182,0.31051604,4404.2,4404.1,22.074]
[1755354795879,0.31051604,4404.2,4404.1,21.642]
[1755354796086,0.31051604,4404.2,4403.3,3.2078]
[1755354796087,1.19831604,4404.2,4403.3,3.2078]
[1755354796282,0.21051604,4404.1,4403.4,21.636]
[1755354796480,0.8878,4404.0,4403.4,21.636]
[1755354796681,0.21051604,4403.9,4403.4,21.636]
[1755354796887,0.3724,4403.8,4403.5,0.2647]
[1755354797087,0.5154,4403.7,4403.6,0.1653]
[1755354797380,0.8878,4403.7,4403.6,0.1653]
[1755354797987,0.8878,4403.7,4403.6,0.43]
[1755354798683,0.399,4403.9,4403.6,21.617]
[1755354798886,0.7157,4403.5,4403.3,3.2078]
[1755354799189,0.9675,4403.4,4403.3,3.2078]
[1755354799581,0.9675,4403.4,4403.3,24.8198]
[1755354799987,0.9675,4403.4,4403.3,3.2078]
[1755354800188,0.9675,4403.4,4403.3,21.606]
[1755354800189,4.38590624,4403.4,4403.3,21.606]
[1755354800883,0.21060624,4403.4,4403.3,22.0317]
[1755354802288,0.399,4403.1,4402.9,3.2078]
[1755354802483,3.2078,4404.0,4402.9,3.2078]
[1755354802690,0.7546956,4403.9,4403.0,21.591]
[1755354802987,0.21083728,4403.8,4403.1,21.592]
[1755354803187,0.9675,4403.6,4403.1,21.592]
[1755354803388,0.9675,4403.4,4403.1,21.592]
[1755354803582,0.21083728,4403.3,4403.1,21.592]
[1755354803779,1.17833728,4403.2,4403.1,21.592]
[1755354804187,0.3167,4403.1,4402.9,3.2078]
[1755354804390,0.9675,4403.1,4403.0,21.586]
[1755354804583,1.17841325,4403.1,4403.0,21.583]
[1755354804984,1.17841325,4403.1,4403.0,22.0087]
[1755354805184,1.17841325,4403.1,4403.0,0.4257]
[1755354805384,1.17841325,4403.1,4403.0,21.9997]
[1755354805684,1.17841325,4403.1,4403.0,0.4257]
[1755354805889,1.17841325,4403.1,4403.0,21.9937]
[1755354806079,1.17841325,4403.1,4403.0,0.4257]
[1755354806284,0.5685,4403.6,4403.0,21.836]
[1755354806484,0.2109819,4403.5,4403.0,21.569]
[1755354806691,0.2109819,4403.4,4403.1,0.4257]
[1755354806985,0.2109819,4403.3,4403.2,0.4257]
[1755354807684,0.7794819,4403.3,4403.2,0.4257]
[1755354807990,1.1784819,4403.3,4403.2,0.4257]
[1755354808387,1.1784819,4403.3,4403.2,21.9857]
[1755354808584,1.1784819,4403.3,4403.2,21.9747]
[1755354809189,1.8141819,4403.3,4403.2,22.3544]
[1755354810191,1.81434871,4403.3,4403.2,22.3544]
[1755354812181,1.3574,4403.2,4403.1,0.1712]
[1755354812386,1.81434871,4403.2,4403.1,21.525]
[1755354812891,0.84684871,4403.2,4403.1,21.515]
[1755354813283,0.84684871,4403.2,4403.1,21.512]
[1755354813589,1.81434871,4403.2,4403.1,21.509]
[1755354813788,0.1667,4403.0,4402.9,3.379]
[1755354814095,1.6032,4403.0,4402.9,24.883]
[1755354815689,1.6032,4403.0,4402.9,3.379]
[1755354815992,1.6032,4403.0,4402.9,24.868]
[1755354816297,1.6032,4403.0,4402.9,3.379]
[1755354816489,1.6032,4403.0,4402.9,24.862]
[1755354817496,1.6032,4403.0,4402.9,21.6542]
[1755354817891,0.6357,4402.5,4402.4,3.2078]
[1755354818093,0.84171623,4402.5,4402.4,21.483]
[1755354818293,0.84171623,4402.5,4402.4,21.473]
[1755354818496,0.84171623,4402.5,4402.4,21.476]
[1755354818794,1.80921623,4402.5,4402.4,21.1383]
[1755354819298,1.15841623,4402.5,4401.7,3.2078]
[1755354819493,1.2042,4401.4,4401.3,33.0454]
[1755354819798,1.6032,4401.4,4401.3,54.5154]
[1755354820592,1.6032,4401.4,4401.3,32.705]
[1755354820792,1.6032,4401.4,4401.3,54.173]
[1755354820993,0.6357,4401.4,4401.3,21.47]
[1755354821190,1.3514,4401.4,4401.3,21.469]
[1755354821395,1.6032,4401.4,4401.3,21.469]
[1755354821593,0.4125,4401.1,4401.0,3.2078]
[1755354821790,1.3514,4401.1,4400.9,15.3]
[1755354821996,1.2042,4401.1,4401.0,21.464]
[1755354822197,1.6032,4401.1,4401.0,21.462]
[1755354822491,1.6032,4401.1,4400.5,3.5492]
[1755354822697,0.6508,4401.0,4400.6,21.46]
[1755354822891,0.6508,4401.0,4400.6,22.1847]
[1755354823094,0.4125,4400.8,4400.7,0.7247]
[1755354823394,0.4125,4400.8,4400.7,22.4487]
[1755354824301,0.6643,4400.8,4400.7,22.4487]
[1755354824792,1.6032,4400.8,4400.7,0.7247]
[1755354825100,0.6357,4400.0,4399.9,3.5895]
[1755354825301,1.6032,4400.0,4399.9,3.9309]
[1755354825596,1.6032,4400.0,4399.9,25.3759]
[1755354825791,1.6032,4400.0,4399.9,3.9299]
[1755354826098,1.6032,4400.0,4399.9,24.6498]
[1755354826695,1.6032,4400.0,4399.9,25.3729]
[1755354827091,1.6032,4400.0,4399.9,3.9309]
[1755354827295,1.6032,4400.0,4399.9,3.2078]
[1755354827496,1.6032,4400.0,4399.9,24.6428]
[1755354827801,1.6032,4400.0,4399.9,3.2078]
[1755354827996,1.6032,4400.0,4399.9,24.6448]
[1755354828901,1.5891,4400.0,4399.9,25.3527]
[1755354832801,0.257,4400.7,4399.9,25.039]
[1755354833000,0.4125,4400.7,4400.6,0.9721]
[1755354833204,0.4125,4400.7,4400.6,22.3761]
[1755354833205,0.6695,4400.7,4400.6,22.3761]
[1755354833408,0.2438,4400.7,4400.6,22.3761]
[1755354833608,3.2078,4400.8,4400.7,0.9721]
[1755354834102,4.7949,4400.8,4400.7,21.411]
[1755354834498,4.7949,4400.8,4400.2,0.5749]
[1755354834701,1.5871,4400.3,4400.2,0.1735]
[1755354835002,1.5871,4400.3,4400.2,21.5835]
[1755354835408,1.5871,4400.3,4400.2,22.1209]
[1755354836004,3.2078,4400.8,4400.2,22.3821]
[1755354836201,3.8448,4400.8,4400.7,0.3972]
[1755354836404,4.7949,4400.8,4400.7,22.1139]
[1755354836707,4.7949,4400.8,4400.7,22.3751]
[1755354837102,4.4845,4400.8,4400.7,22.3751]
[1755354838207,3.2078,4400.8,4400.7,22.3751]
[1755354838403,0.9474,4401.4,4401.3,0.3972]
[1755354838604,1.5871,4401.4,4401.3,21.7892]
[1755354839112,1.5871,4401.4,4401.3,22.1029]
[1755354839297,0.2438,4401.4,4401.3,22.3641]
[1755354839502,3.2078,4401.6,4401.3,21.7892]
[1755354839702,3.2078,4401.6,4401.5,0.9721]
[1755354840406,0.6695,4402.2,4402.1,0.3972]
[1755354840701,3.2078,4402.3,4402.2,0.2612]
[1755354840909,3.2078,4402.3,4402.2,0.9721]
[1755354841507,4.7949,4402.3,4402.2,22.1109]
[1755354841700,1.5871,4402.3,4402.2,21.7972]
[1755354842206,1.5871,4402.3,4402.2,21.7962]
[1755354842401,1.5871,4402.3,4402.2,0.3972]
[1755354842708,1.5871,4402.3,4402.2,22.1049]
[1755354845118,3.2078,4402.9,4402.7,0.3972]
[1755354845416,3.2078,4402.9,4402.0,3.66184]
[1755354845417,3.2078,4402.9,4402.8,22.3501]
[1755354846209,3.2078,4403.4,4402.8,21.7752]
[1755354846512,4.7949,4403.4,4403.3,0.3972]
[1755354846809,5.00016653,4403.4,4403.3,21.7692]
[1755354847208,5.00018223,4403.4,4403.3,21.7692]
[1755354847617,3.82558223,4403.4,4403.3,22.3441]
[1755354847809,0.1,4404.2,4403.3,21.7692]
[1755354848011,0.20715575,4404.1,4404.0,0.7109]
[1755354848209,0.1,4404.2,4404.1,0.9721]
[1755354849614,0.1,4404.2,4404.1,22.3351]
[1755354850116,0.894,4405.3,4405.2,0.7109]
[1755354850310,1.5871,4405.3,4405.2,0.3972]
[1755354850505,1.5871,4405.3,4405.2,21.7772]
[1755354851614,1.5871,4405.3,4405.2,22.0909]
[1755354851813,1.2767,4405.3,4405.2,0.9721]
[1755354852012,1.2767,4405.3,4405.2,22.3371]
[1755354852310,1.5871,4405.3,4405.2,22.0759]
[1755354853315,1.5871,4405.3,4405.2,0.7109]
[1755354854017,1.5871,4405.3,4405.2,22.0589]
[1755354854213,3.2078,4405.5,4405.4,0.3972]
[1755354854411,3.4648,4405.5,4405.4,0.3972]
[1755354854607,0.3104,4405.4,4404.9,0.3137]
[1755354854814,1.5871,4405.1,4405.0,22.0539]
[1755354855212,1.2767,4405.1,4405.0,22.3151]
[1755354855715,1.5871,4405.1,4405.0,22.0539]
[1755354856713,1.5871,4405.1,4405.0,0.3972]
[1755354856918,1.5871,4405.1,4405.0,21.7332]
[1755354857617,1.5871,4405.1,4405.0,22.0469]
[1755354858418,1.5871,4405.1,4405.0,0.3972]
[1755354858615,1.5871,4405.1,4405.0,21.7222]
[1755354859114,1.5871,4405.1,4405.0,21.7102]
[1755354860322,0.5008,4405.1,4405.0,22.2961]
[1755354860619,1.5604,4405.1,4405.0,22.0392]
[1755354861616,0.6689,4405.1,4405.0,22.2961]
[1755354861816,0.5008,4405.1,4405.0,22.2961]
[1755354862014,0.8787,4405.1,4405.0,22.2961]
[1755354862212,1.2495,4405.1,4405.0,22.2961]
[1755354862418,0.6689,4405.1,4404.5,18.8368]
[1755354862622,0.9326,4405.1,4405.0,0.7074]
[1755354863321,1.566,4405.1,4405.0,0.7074]
[1755354863518,1.566,4405.1,4404.5,18.5078]
[1755354863727,1.5874,4404.7,4404.6,21.9944]
[1755354863917,1.2765,4404.7,4404.6,22.2513]
[1755354864117,0.6959,4404.7,4404.6,22.2513]
[1755354864618,3.2078,4405.5,4404.6,22.2513]
[1755354864820,0.6405,4405.4,4405.3,0.3784]
[1755354865021,1.5874,4405.4,4405.3,21.6654]
[1755354865222,1.5874,4405.4,4405.3,21.4919]
[1755354865819,1.5874,4405.4,4404.9,0.329]
[1755354866018,0.6431,4405.1,4405.0,21.9934]
[1755354866218,1.5874,4405.1,4405.0,21.9934]
[1755354866420,1.5874,4405.1,4405.0,0.7074]
[1755354866620,1.5874,4405.1,4405.0,21.9934]
[1755354869825,1.5874,4405.1,4405.0,0.3784]
[1755354870018,1.5874,4405.1,4405.0,21.285]
[1755354870019,0.6431,4405.1,4405.0,21.285]
[1755354870216,0.6431,4405.1,4405.0,21.6634]
[1755354870721,1.5874,4405.1,4405.0,21.9924]
[1755354872224,0.9057,4405.1,4405.0,22.2493]
[1755354872723,1.5874,4405.1,4405.0,21.6634]
[1755354872924,1.5874,4405.1,4405.0,21.9924]
[1755354873315,0.6431,4405.1,4404.5,18.5078]
[1755354873523,1.2166,4404.5,4404.4,0.3784]
[1755354873724,1.5874,4404.5,4404.4,0.3784]
[1755354873923,1.5874,4404.5,4404.4,21.6624]
[1755354874125,1.5874,4404.5,4404.4,0.3784]
[1755354874624,1.5874,4404.5,4404.4,21.6624]
[1755354874822,1.5874,4404.5,4404.4,0.3784]
[1755354875119,1.0667,4404.5,4404.4,0.9643]
[1755354875824,1.0667,4404.5,4404.4,22.2473]
[1755354876322,0.9057,4405.6,4405.5,0.3024]
[1755354876527,2.13285674,4405.6,4405.5,0.6314]
[1755354877126,2.13285674,4405.6,4405.5,0.2049]
[1755354877315,0.9443,4405.5,4405.4,21.283]
[1755354877520,2.13285674,4405.5,4405.4,21.283]
[1755354877925,2.13285674,4405.5,4405.4,21.4879]
[1755354878126,2.13285674,4405.5,4405.4,21.9144]
[1755354879219,2.13285674,4405.5,4405.4,21.74417286]
[1755354879828,0.2626,4405.4,4404.8,15.3]
[1755354880032,0.6431,4405.0,4404.9,21.8149]
[1755354880330,2.13412402,4405.0,4404.9,21.8149]
[1755354880529,2.13412402,4405.0,4404.9,21.9124]
[1755354880830,1.5874,4405.0,4404.9,21.9124]
[1755354881125,1.2765,4405.0,4404.9,21.9124]
[1755354881330,1.5874,4405.0,4404.9,21.9124]
[1755354882532,1.5874,4405.0,4404.9,0.6314]
[1755354882725,1.5874,4405.0,4404.9,21.9114]
[1755354884830,1.5874,4405.0,4404.9,21.9104]
[1755354885425,0.6959,4405.0,4404.9,21.9104]
[1755354885628,1.2765,4405.0,4404.9,21.9104]
[1755354885827,1.5874,4405.0,4404.9,21.9104]
[1755354886027,1.5874,4405.0,4404.9,0.6314]
[1755354886225,1.5874,4405.0,4404.9,21.9104]
[1755354886526,1.5874,4405.0,4404.9,21.5804]
[1755354887234,1.5874,4405.0,4404.9,21.9094]
[1755354888431,0.5735,4404.9,4404.5,15.3]
[1755354888733,1.5758,4404.5,4404.4,3.2078]
[1755354888924,1.7713452,4404.5,4404.4,24.4848]
[1755354889932,1.7713452,4404.5,4404.4,21.277]
[1755354890235,0.4454452,4404.5,4404.4,21.8937]
[1755354890430,0.4137,4404.5,4404.4,21.8937]
[1755354890629,0.2499,4404.5,4404.4,21.9547]
[1755354890831,0.4137,4404.5,4404.4,21.8937]
[1755354891028,0.2499,4404.5,4404.4,21.8937]
[1755354892025,0.4137,4404.5,4404.4,21.8937]
[1755354892234,1.5518,4404.5,4404.4,0.2126]
[1755354892435,1.74726569,4404.5,4404.4,0.2126]
[1755354892631,1.74726569,4404.5,4404.4,21.4876]
[1755354893527,1.74726569,4404.5,4404.4,21.8917]
[1755354894232,1.5518,4404.5,4404.4,21.8917]
[1755354899337,1.5518,4404.5,4403.9,15.3]
[1755354899543,0.6315,4404.1,4404.0,21.8897]
[1755354899840,0.8814,4403.8,4403.7,3.8245]
[1755354900042,1.5518,4403.8,4403.7,25.0965]
[1755354900243,1.5518,4403.8,4403.7,40.3965]
[1755354900744,1.5518,4403.8,4403.7,3.2078]
[1755354900931,1.5518,4403.8,4403.7,24.4798]
[1755354901741,1.74724706,4403.8,4403.7,3.2078]
[1755354901942,1.5518,4403.8,4403.7,24.4798]
[1755354902245,1.5518,4403.8,4403.7,21.272]
[1755354902436,1.74709395,4403.8,4403.7,21.272]
[1755354902838,1.5518,4403.8,4403.7,21.4846]
[1755354903144,0.2499,4404.4,4404.0,0.6777]
[1755354903342,0.4157,4404.6,4404.5,0.6167]
[1755354903542,0.1638,4404.6,4404.5,21.8877]
[1755354903841,1.5518,4404.6,4404.5,21.8877]
[1755354904038,1.74702972,4404.6,4404.5,0.3101]
[1755354904242,1.74702972,4404.6,4404.5,21.4836]
[1755354905947,0.9323,4404.5,4404.4,0.2126]
[1755354906247,1.5518,4404.5,4404.4,21.7902]
[1755354906743,0.4137,4404.5,4404.4,21.8877]
[1755354906944,0.6656,4404.5,4404.4,21.8877]
[1755354907145,1.0332,4404.5,4404.4,21.8877]
[1755354907345,1.249,4404.5,4404.4,21.8877]
[1755354907544,1.5518,4404.5,4404.4,21.8877]
[1755354908936,1.249,4404.5,4404.4,21.8877]
[1755354909543,3.2078,4404.8,4404.4,21.9487]
[1755354909742,0.2499,4404.7,4404.6,0.6167]
[1755354910040,0.8814,4404.7,4404.6,0.6167]
[1755354910946,1.5518,4404.7,4404.6,0.6167]
[1755354911849,3.2078,4404.8,4404.7,0.3676]
[1755354912150,3.2078,4404.8,4404.7,0.6777]
[1755354912446,0.2499,4405.0,4404.7,0.3101]
[1755354912642,0.2499,4405.4,4405.1,0.3066]
[1755354912850,3.8782,4405.5,4405.2,21.8837]
[1755354912851,0.44671428,4405.3,4405.2,21.8837]
[1755354913044,1.23001428,4405.3,4405.2,21.8827]
[1755354913240,1.74861428,4405.3,4405.2,21.8827]
[1755354914553,1.5518,4405.3,4405.2,21.8827]
[1755354915845,0.8814,4405.3,4405.2,21.8827]
[1755354916050,0.6656,4405.3,4405.2,21.8827]
[1755354917353,0.2499,4405.9,4405.2,21.8827]
[1755354917655,0.6656,4405.4,4405.3,0.617]
[1755354917844,1.0332,4405.4,4405.3,0.617]
[1755354918046,1.249,4405.4,4405.3,0.617]
[1755354918356,1.5518,4405.4,4405.3,0.617]
[1755354920854,1.388,4405.4,4405.3,0.617]
[1755354921060,0.2499,4405.4,4405.3,0.617]
[1755354921255,0.4197,4405.4,4405.3,0.617]
[1755354921562,1.2575,4405.4,4405.3,0.617]
[1755354921858,1.5716,4405.4,4405.3,0.617]
[1755354924958,1.0634,4405.4,4405.3,0.617]
[1755354925455,0.564,4405.4,4405.3,0.617]
[1755354925662,4.5295,4406.5,4406.4,0.198]
[1755354925863,4.5295,4406.5,4406.4,21.8529]
[1755354926359,0.6732,4406.5,4406.4,21.8529]
[1755354926555,0.2488,4406.5,4406.4,21.8529]
[1755354926758,0.2488,4406.5,4406.4,21.9134]
[1755354927357,0.8673,4407.1,4407.0,0.2947]
[1755354927553,1.5705,4407.1,4407.0,21.8519]
[1755354928459,0.6732,4407.1,4407.0,21.8519]
[1755354928769,1.5705,4407.1,4407.0,21.8519]
[1755354929464,1.5705,4407.1,4407.0,0.5999]
[1755354929661,1.5705,4407.1,4407.0,21.248]
[1755354930162,1.5705,4407.1,4407.0,21.446]
[1755354930658,1.5705,4407.1,4406.5,3.2078]
[1755354930855,1.5705,4406.5,4406.4,3.5025]
[1755354931056,0.2488,4407.1,4406.5,0.3052]
[1755354931260,1.5705,4407.1,4407.0,0.5999]
[1755354931462,1.5705,4407.1,4407.0,21.8459]
[1755354932063,1.2564,4407.6,4407.5,0.2947]
[1755354932258,1.5705,4407.6,4407.5,21.8439]
[1755354932661,1.5705,4407.6,4407.5,21.442]
[1755354932866,1.5705,4407.6,4407.5,21.244]
[1755354934362,1.5705,4407.6,4407.5,0.5999]
[1755354934572,1.5705,4407.6,4407.5,21.8429]
[1755354937671,0.6379,4407.5,4407.0,0.3052]
[1755354937972,1.5705,4407.1,4407.0,0.5999]
[1755354938165,1.5705,4407.1,4407.0,15.8999]
[1755354938664,1.5705,4407.1,4407.0,37.1359]
[1755354939568,1.5705,4407.1,4407.0,36.8287]
[1755354939872,1.5705,4407.1,4407.0,36.732]
[1755354940065,1.5705,4407.1,4407.0,15.498]
[1755354940267,0.6185,4407.1,4407.0,21.233]
[1755354940468,1.5705,4407.1,4407.0,21.233]
[1755354942469,0.6185,4407.1,4407.0,21.231]
[1755354943067,1.5705,4407.1,4407.0,21.231]
[1755354943474,3.2078,4407.7,4407.1,0.3052]
[1755354943775,4.5842,4407.7,4407.6,0.5999]
[1755354943978,4.5842,4407.7,4407.6,21.8289]
[1755354944874,4.7783,4407.7,4407.6,21.427]
[1755354945379,4.7783,4407.7,4407.6,21.8289]
[1755354946573,3.4566,4407.7,4407.6,21.8289]
[1755354946774,4.7783,4407.7,4407.6,21.427]
[1755354946974,4.7783,4407.7,4407.6,0.198]
[1755354947276,4.7783,4407.7,4407.6,21.8249]
[1755354947777,4.7783,4407.7,4407.6,0.0967]
[1755354947978,3.8263,4407.7,4407.6,21.225]
[1755354948373,0.3141,4407.6,4407.1,0.3052]
[1755354948575,1.5614,4407.2,4407.1,0.5999]
[1755354948777,1.597,4406.9,4406.8,3.7882]
[1755354949274,0.2557,4406.9,4406.8,3.7882]
[1755354949475,0.6449,4407.2,4407.1,0.2904]
[1755354949674,1.597,4407.2,4407.1,0.5804]
[1755354950278,0.2557,4407.2,4407.1,0.5804]
[1755354950478,0.2557,4407.2,4407.1,0.6411]
[1755354950676,1.3413,4407.6,4407.5,0.5804]
[1755354950870,0.6872,4407.5,4407.0,0.29]
[1755354951077,1.3413,4407.1,4406.8,3.2078]
[1755354951377,3.2078,4407.7,4406.9,21.221]
[1755354951378,1.597,4407.0,4406.9,21.221]
[1755354952178,1.597,4407.0,4406.9,21.4143]
[1755354952780,1.597,4407.0,4406.9,21.8014]
[1755354952978,0.6983,4407.0,4406.9,21.8014]
[1755354953179,0.2557,4407.0,4406.9,21.8014]
[1755354953381,1.2927,4407.0,4406.9,21.8014]
[1755354953582,1.597,4407.0,4406.9,21.8014]
[1755354954179,1.597,4407.0,4406.9,21.7994]
[1755354954380,1.597,4407.0,4406.9,0.5804]
[1755354954683,1.597,4407.0,4406.9,21.7984]
[1755354955281,0.2557,4407.0,4406.9,21.7984]
[1755354955482,0.2557,4407.6,4406.9,21.5691]
[1755354955676,1.0812,4407.6,4407.5,0.5804]
[1755354955879,1.28268771,4407.6,4407.5,21.7974]